bitfinex-derivatives/quotes_BTCF0:USTF0_20210703
["timestamp","ask_amount","ask_price","bid_price","bid_amount"]
[1625309897511,2.43255081,34586.0,34584.0,0.24057544]
[1625309897711,1.0009359,34585.0,34584.0,0.24057544]
[1625309898012,1.0599359,34585.0,34584.0,0.24057544]
[1625309898262,1.1189359,34585.0,34584.0,0.24594302]
[1625309898363,1.0599359,34585.0,34584.0,0.24594302]
[1625309898613,1.1189359,34585.0,34584.0,0.24594302]
[1625309899115,2.22726907,34585.0,34584.0,0.24594302]
[1625309899264,2.16826907,34585.0,34584.0,0.24594302]
[1625309899815,2.22726907,34585.0,34584.0,0.24594302]
[1625309899915,1.0599359,34585.0,34584.0,0.24594302]
[1625309900017,1.0009359,34585.0,34584.0,0.24594302]
[1625309900469,2.16864534,34585.0,34584.0,0.24594302]
[1625309900567,2.16864534,34585.0,34584.0,0.24057544]
[1625309900769,2.16864534,34585.0,34584.0,0.24594438]
[1625309901068,1.0009359,34585.0,34584.0,0.24594438]
[1625309901473,1.20384485,34586.0,34584.0,0.81302571]
[1625309901670,1.20384485,34586.0,34584.0,0.75402571]
[1625309901770,1.20384485,34586.0,34585.0,0.0905492]
[1625309902120,1.20384485,34586.0,34585.0,0.1495492]
[1625309902221,1.20384485,34586.0,34585.0,0.0905492]
[1625309902321,0.20239695,34586.0,34585.0,0.26090816]
[1625309902721,1.20419701,34586.0,34585.0,0.26090816]
[1625309902870,1.26319701,34586.0,34585.0,0.26090816]
[1625309903071,2.43136924,34586.0,34584.0,0.24057544]
[1625309903224,2.65246924,34586.0,34584.0,0.24057544]
[1625309903320,2.71146924,34586.0,34584.0,0.24057544]
[1625309903924,2.16895137,34585.0,34584.0,0.24057544]
[1625309904026,2.28695137,34585.0,34584.0,0.24057544]
[1625309904123,2.22795137,34585.0,34584.0,0.24057544]
[1625309905377,2.28695137,34585.0,34584.0,0.24057544]
[1625309905477,2.22795137,34585.0,34584.0,0.24057544]
[1625309905577,2.28695137,34585.0,34584.0,0.24057544]
[1625309905727,2.22795137,34585.0,34584.0,0.24057544]
[1625309905879,2.28695137,34585.0,34584.0,0.24057544]
[1625309906532,3.61858011,34585.0,34584.0,0.24057544]
[1625309908532,5.11518474,34585.0,34584.0,0.24057544]
[1625309909282,5.12751212,34585.0,34584.0,0.24057544]
[1625309914090,5.11518474,34585.0,34584.0,0.24057544]
[1625309917547,5.12751123,34585.0,34584.0,0.24057544]
[1625309918047,5.11518474,34585.0,34584.0,0.24057544]
[1625309918650,5.78082614,34585.0,34584.0,0.24057544]
[1625309919151,4.28422151,34585.0,34584.0,0.24057544]
[1625309919250,4.28422151,34585.0,34584.0,0.44249544]
[1625309920051,4.29655474,34585.0,34584.0,0.44249544]
[1625309920453,4.29655474,34585.0,34584.0,0.24057544]
[1625309920703,5.79319863,34585.0,34584.0,0.24057544]
[1625309922106,6.08728863,34585.0,34584.0,0.24057544]
[1625309923758,6.08728863,34585.0,34576.0,0.25580628]
[1625309923860,6.08728863,34585.0,34575.0,0.83734264]
[1625309924260,0.01233932,34584.0,34576.0,0.00536532]
[1625309924463,1.16303479,34578.0,34576.0,0.00536532]
[1625309924663,1.28103479,34578.0,34576.0,0.00536532]
[1625309924861,0.48115088,34577.0,34576.0,0.00536532]
[1625309925062,2.26102806,34577.0,34576.0,0.00536532]
[1625309925162,2.20202806,34577.0,34576.0,0.00536532]
[1625309925263,2.26102806,34577.0,34576.0,0.00536532]
[1625309925365,2.45278806,34577.0,34576.0,0.00536532]
[1625309925513,2.39378806,34577.0,34576.0,0.00536532]
[1625309925915,3.55858681,34577.0,34576.0,0.00536532]
[1625309926365,3.61758681,34577.0,34576.0,0.00536532]
[1625309928167,3.55858681,34577.0,34576.0,0.00536532]
[1625309928668,2.39378806,34577.0,34576.0,0.00536532]
[1625309929371,2.45278806,34577.0,34576.0,0.00536532]
[1625309929470,2.39378806,34577.0,34576.0,0.00536532]
[1625309929620,2.45278806,34577.0,34576.0,0.00536532]
[1625309929820,3.61468779,34577.0,34576.0,0.00536532]
[1625309929923,3.55568779,34577.0,34576.0,0.00536532]
[1625309930023,3.55568779,34577.0,34575.0,0.00536609]
[1625309930373,2.39378806,34577.0,34575.0,0.09058286]
[1625309930473,2.20202806,34577.0,34575.0,0.09058286]
[1625309930624,2.20202806,34577.0,34576.0,0.00536589]
[1625309930874,1.53724396,34577.0,34576.0,0.51605133]
[1625309931226,2.20166136,34577.0,34576.0,0.51605133]
[1625309931826,2.20166136,34577.0,34576.0,0.60127581]
[1625309932729,1.20456828,34577.0,34576.0,0.77172359]
[1625309933878,2.20148427,34577.0,34576.0,0.77172359]
[1625309934880,2.20148427,34577.0,34576.0,1.11267748]
[1625309935283,2.20148427,34577.0,34576.0,0.77172359]
[1625309936234,2.28688427,34577.0,34576.0,0.77172359]
[1625309937991,2.29922215,34577.0,34576.0,0.77172359]
[1625309939391,0.63788876,34577.0,34576.0,0.77172359]
[1625309939643,0.55248876,34577.0,34576.0,0.77172359]
[1625309939742,3.38040579,34577.0,34576.0,1.11295108]
[1625309939991,3.38040579,34577.0,34576.0,0.77172359]
[1625309941293,3.38040579,34577.0,34576.0,1.11294542]
[1625309941595,3.38040579,34577.0,34576.0,0.77172359]
[1625309943198,3.38040579,34577.0,34576.0,1.11295104]
[1625309943847,3.38040579,34577.0,34576.0,0.77172359]
[1625309944499,3.38040579,34577.0,34576.0,1.02779995]
[1625309944951,3.38040579,34577.0,34576.0,1.11312415]
[1625309945703,3.38040579,34577.0,34576.0,1.02779995]
[1625309945803,2.71496463,34577.0,34576.0,1.02779995]
[1625309946156,3.38100534,34577.0,34576.0,0.85735217]
[1625309946855,3.38100534,34577.0,34576.0,0.51605133]
[1625309947056,3.36866746,34577.0,34576.0,0.51605133]
[1625309947756,3.38099999,34577.0,34576.0,0.51605133]
[1625309947858,3.38099999,34577.0,34576.0,1.19910555]
[1625309948059,3.36866746,34577.0,34576.0,1.19910555]
[1625309948411,2.20427017,34577.0,34576.0,2.22370792]
[1625309948810,2.20427017,34577.0,34576.0,2.736008]
[1625309949662,3.37078198,34577.0,34576.0,2.736008]
[1625309949863,3.38311429,34577.0,34576.0,2.736008]
[1625309951667,3.32411429,34577.0,34576.0,2.736008]
[1625309951766,3.31178198,34577.0,34576.0,2.795008]
[1625309953018,3.07120654,34577.0,34576.0,2.795008]
[1625309953168,3.07120654,34577.0,34576.0,2.736008]
[1625309953371,1.90469473,34577.0,34576.0,3.9322887]
[1625309953869,3.07202401,34577.0,34576.0,3.9322887]
[1625309954120,3.07202401,34577.0,34576.0,3.9912887]
[1625309957680,3.07202401,34577.0,34576.0,3.9322887]
[1625309961933,3.07202401,34577.0,34576.0,3.9912887]
[1625309962684,3.07202401,34577.0,34576.0,5.36018689]
[1625309963087,2.83144857,34577.0,34576.0,5.36018689]
[1625309963235,2.83144857,34577.0,34576.0,5.41918689]
[1625309963988,2.83144857,34577.0,34576.0,5.36018689]
[1625309964087,2.83144857,34577.0,34576.0,5.30118689]
[1625309966243,4.16625774,34577.0,34576.0,5.30118689]
[1625309966696,2.83144857,34577.0,34576.0,5.30118689]
[1625309968699,4.16582373,34577.0,34576.0,5.30118689]
[1625309969252,4.16582373,34577.0,34576.0,3.9322887]
[1625309970255,4.17815926,34577.0,34576.0,3.9322887]
[1625309970555,4.16582373,34577.0,34576.0,3.9322887]
[1625309970863,4.16582373,34577.0,34576.0,5.30193154]
[1625309973057,4.16582373,34577.0,34576.0,5.36093154]
[1625309973509,2.83144857,34577.0,34576.0,5.36093154]
[1625309979420,2.83144857,34577.0,34576.0,5.41993154]
[1625309982882,1.66411929,34577.0,34576.0,5.41993154]
[1625309983481,2.83336006,34577.0,34576.0,5.41993154]
[1625309985135,1.66411929,34577.0,34576.0,5.41993154]
[1625309987990,0.66604071,34577.0,34576.0,6.9602433]
[1625309991198,0.66604071,34577.0,34576.0,7.20081874]
[1625309991554,0.66853735,34579.0,34576.0,7.20081874]
[1625309991902,0.66853735,34579.0,34577.0,0.00536589]
[1625309992002,0.66853735,34579.0,34577.0,0.12336589]
[1625309992355,0.6686882,34580.0,34578.0,6.33132481]
[1625309992455,0.6686882,34580.0,34578.0,6.45469072]
[1625309992705,0.6686882,34580.0,34579.0,0.00536589]
[1625309992803,0.6686882,34580.0,34579.0,0.06436589]
[1625309992904,0.6686882,34580.0,34579.0,0.12336589]
[1625309993006,0.6686882,34580.0,34579.0,6.45270984]
[1625309993207,0.6686882,34580.0,34579.0,6.69328528]
[1625309994059,0.6686882,34580.0,34579.0,5.15371513]
[1625309994310,0.6686882,34580.0,34579.0,6.6932799]
[1625309994661,0.6686882,34580.0,34579.0,5.15371513]
[1625309996515,0.24057544,34587.0,34579.0,0.36394133]
[1625309996966,1.16697325,34582.0,34581.0,1.19701428]
[1625309997213,1.16697325,34582.0,34581.0,1.43758972]
[1625309997412,1.16697325,34582.0,34581.0,1.44295591]
[1625309997514,2.83428775,34582.0,34581.0,3.66605061]
[1625309998213,2.83428775,34582.0,34581.0,3.72505061]
[1625309999016,2.83428775,34582.0,34581.0,3.66605061]
[1625309999265,2.83428775,34582.0,34581.0,3.72505061]
[1625310001726,1.6673145,34582.0,34581.0,5.15192696]
[1625310002123,1.6673145,34582.0,34581.0,5.34714696]
[1625310002324,0.66780543,34583.0,34581.0,5.34714696]
[1625310002724,0.66780543,34583.0,34582.0,0.00536557]
[1625310002828,1.00162468,34584.0,34582.0,0.00536557]
[1625310002829,0.66810142,34584.0,34582.0,6.33127244]
[1625310002924,0.66810142,34584.0,34582.0,6.44927244]
[1625310003224,0.66810142,34584.0,34583.0,0.24057544]
[1625310003330,0.20239695,34586.0,34583.0,6.56318232]
[1625310003430,0.20239695,34586.0,34583.0,6.68118232]
[1625310003982,0.20239695,34586.0,34583.0,6.68654724]
[1625310004083,0.20239695,34586.0,34585.0,4.78452981]
[1625310004382,0.20239695,34586.0,34585.0,4.90252981]
[1625310004483,0.20239695,34586.0,34585.0,4.90789278]
[1625310004633,0.14339695,34586.0,34585.0,4.84889278]
[1625310004982,0.08959695,34586.0,34585.0,4.84889278]
[1625310005236,0.65891186,34588.0,34585.0,5.58946822]
[1625310005384,1.33646277,34592.0,34585.0,5.58946822]
[1625310005385,0.66915125,34592.0,34586.0,0.059]
[1625310005534,0.66915125,34592.0,34586.0,0.07292589]
[1625310005634,0.61715125,34592.0,34586.0,0.07292589]
[1625310005735,0.60595125,34592.0,34586.0,0.07292589]
[1625310005835,0.60595125,34592.0,34587.0,0.01392609]
[1625310005935,0.50845125,34592.0,34587.0,0.01392609]
[1625310006036,0.50845125,34592.0,34587.0,0.13192609]
[1625310006387,0.50845125,34592.0,34588.0,0.3041726]
[1625310006489,1.00377728,34599.0,34591.0,5.63129915]
[1625310006689,1.00377728,34599.0,34591.0,5.69029915]
[1625310006892,1.00377728,34599.0,34592.0,0.00536257]
[1625310006986,1.00377728,34599.0,34592.0,0.06436257]
[1625310007186,1.00377728,34599.0,34592.0,0.12336257]
[1625310007337,1.00376691,34598.0,34597.0,2.25089485]
[1625310008140,1.00249374,34599.0,34597.0,1.56778848]
[1625310008239,1.00249374,34599.0,34597.0,1.50878848]
[1625310008540,1.00249374,34599.0,34597.0,1.56778848]
[1625310008641,1.00249374,34599.0,34597.0,1.50878848]
[1625310008793,2.17051529,34598.0,34597.0,1.25308722]
[1625310009247,2.22951529,34598.0,34597.0,0.97743722]
[1625310009345,2.22951529,34598.0,34597.0,0.72172632]
[1625310009749,2.28851529,34598.0,34597.0,0.72172632]
[1625310009997,3.56262985,34598.0,34597.0,0.72172632]
[1625310010499,5.06131309,34598.0,34597.0,0.72172632]
[1625310011298,5.12031309,34598.0,34597.0,0.72172632]
[1625310011399,5.06131309,34598.0,34597.0,0.72172632]
[1625310011598,5.38631309,34598.0,34597.0,0.72172632]
[1625310011998,4.38452396,34598.0,34597.0,0.72172632]
[1625310012802,5.38334893,34598.0,34597.0,0.72172632]
[1625310013201,5.32434893,34598.0,34597.0,0.72172632]
[1625310013452,5.62392437,34598.0,34597.0,0.72172632]
[1625310015306,5.29892437,34598.0,34597.0,0.91274632]
[1625310015656,5.23992437,34598.0,34597.0,0.91274632]
[1625310015754,5.29892437,34598.0,34597.0,0.91274632]
[1625310015855,5.23992437,34598.0,34597.0,0.91274632]
[1625310016358,5.29892437,34598.0,34597.0,0.91274632]
[1625310016606,5.23992437,34598.0,34597.0,0.91274632]
[1625310016809,5.23992437,34598.0,34597.0,0.97174632]
[1625310017057,3.74124113,34598.0,34597.0,0.91274632]
[1625310017159,3.74124113,34598.0,34597.0,0.97174632]
[1625310017257,3.50066569,34598.0,34597.0,0.97174632]
[1625310017806,3.50066569,34598.0,34597.0,0.91274632]
[1625310017907,3.50066569,34598.0,34597.0,0.97174632]
[1625310018007,3.50066569,34598.0,34597.0,0.91274632]
[1625310018109,2.16755113,34598.0,34597.0,0.97174632]
[1625310018207,2.16755113,34598.0,34597.0,0.91274632]
[1625310018761,2.16755113,34598.0,34597.0,0.97174632]
[1625310018860,3.50087402,34598.0,34597.0,0.91274632]
[1625310018962,3.50087402,34598.0,34597.0,0.97174632]
[1625310019061,3.50087402,34598.0,34597.0,0.91274632]
[1625310019263,3.55987402,34598.0,34597.0,0.91274632]
[1625310020364,3.61887402,34598.0,34597.0,0.91274632]
[1625310021566,3.61887402,34598.0,34597.0,0.72172632]
[1625310021667,3.63120166,34598.0,34597.0,0.72172632]
[1625310021769,3.57220166,34598.0,34597.0,0.72172632]
[1625310021970,5.05721851,34598.0,34597.0,0.72172632]
[1625310022669,3.55987402,34598.0,34597.0,0.72172632]
[1625310023523,5.11680166,34598.0,34597.0,0.72172632]
[1625310023822,5.07012949,34598.0,34597.0,0.95031632]
[1625310024123,5.05780166,34598.0,34597.0,0.95031632]
[1625310024524,5.11680166,34598.0,34597.0,0.95031632]
[1625310024625,5.05780166,34598.0,34597.0,0.95031632]
[1625310024725,5.12912946,34598.0,34597.0,0.95031632]
[1625310024978,5.12912946,34598.0,34597.0,0.72172632]
[1625310025077,5.07012946,34598.0,34597.0,0.72172632]
[1625310025176,5.12912946,34598.0,34597.0,0.72172632]
[1625310026679,5.12912946,34598.0,34597.0,0.24057544]
[1625310026931,5.12912946,34598.0,34588.0,0.25550338]
[1625310027380,0.0123284,34597.0,34585.0,0.32575622]
[1625310027480,0.24057544,34591.0,34590.0,0.24057544]
[1625310027583,0.53449544,34591.0,34590.0,0.24057544]
[1625310027730,0.59349544,34591.0,34590.0,0.24057544]
[1625310027982,4.08445762,34591.0,34590.0,0.24057544]
[1625310028584,4.14345762,34591.0,34590.0,0.24057544]
[1625310028784,4.15578681,34591.0,34590.0,0.24057544]
[1625310029135,5.65123435,34591.0,34590.0,0.24057544]
[1625310029535,5.89180979,34591.0,34590.0,0.24057544]
[1625310029837,5.89180979,34591.0,34585.0,0.24057544]
[1625310030036,0.01232932,34590.0,34585.0,0.24057544]
[1625310030286,0.13032932,34590.0,34585.0,0.24057544]
[1625310030586,2.15980382,34586.0,34585.0,0.24057544]
[1625310030687,2.27780382,34586.0,34585.0,0.24057544]
[1625310031092,3.60569758,34586.0,34585.0,0.24057544]
[1625310031489,3.84627302,34586.0,34585.0,0.24057544]
[1625310031689,3.93387302,34586.0,34585.0,0.24057544]
[1625310032590,0.44617544,34586.0,34585.0,0.24057544]
[1625310033141,3.92969354,34586.0,34585.0,0.24057544]
[1625310033741,3.92969354,34586.0,34580.0,0.24057544]
[1625310034043,3.92969354,34586.0,34579.0,0.08522755]
[1625310034141,2.15607322,34581.0,34578.0,0.59659321]
[1625310034292,2.21507322,34581.0,34578.0,0.59659321]
[1625310034491,2.51915322,34581.0,34578.0,0.59659321]
[1625310034643,0.99508995,34579.0,34578.0,0.25568301]
[1625310034891,1.05408995,34579.0,34578.0,0.25568301]
[1625310035492,1.53524083,34579.0,34578.0,0.25568301]
[1625310037947,1.53524083,34579.0,34578.0,0.08522791]
[1625310038551,1.59424083,34579.0,34578.0,0.08522791]
[1625310038651,1.53524083,34579.0,34578.0,0.08522791]
[1625310038750,1.53524083,34579.0,34577.0,0.5113626]
[1625310038751,1.59424083,34579.0,34577.0,0.08522748]
[1625310038851,1.53524083,34579.0,34577.0,0.08522748]
[1625310039099,1.59424083,34579.0,34577.0,0.08522748]
[1625310039200,0.99465294,34578.0,34577.0,0.08522748]
[1625310039349,1.05365294,34578.0,34577.0,0.08522748]
[1625310039450,1.31717294,34578.0,34577.0,0.08522748]
[1625310039801,1.31717294,34578.0,34576.0,0.59658942]
[1625310040252,1.37617294,34578.0,34576.0,0.59658942]
[1625310040354,1.37617294,34578.0,34576.0,0.25567949]
[1625310040955,2.27348101,34577.0,34573.0,0.25570255]
[1625310041605,0.48115088,34574.0,34573.0,0.08523418]
[1625310041857,0.54015088,34574.0,34573.0,0.08523418]
[1625310042357,0.54015088,34574.0,34573.0,0.14423418]
[1625310042456,0.54015088,34574.0,34573.0,0.14960298]
[1625310042558,0.48115088,34574.0,34573.0,0.14960298]
[1625310042858,0.48115088,34574.0,34573.0,0.0643688]
[1625310043210,0.54015088,34574.0,34573.0,0.0643688]
[1625310043511,0.54015088,34574.0,34573.0,0.059]
[1625310043612,0.54015088,34574.0,34573.0,0.29957544]
[1625310043715,0.54015088,34574.0,34573.0,3.02601305]
[1625310044266,0.54015088,34574.0,34573.0,1.77419659]
[1625310044514,0.73822088,34574.0,34573.0,1.77419659]
[1625310044716,0.82382088,34574.0,34573.0,1.77419659]
[1625310044815,0.82382088,34574.0,34573.0,0.75178249]
[1625310045917,0.82382088,34574.0,34573.0,0.83778249]
[1625310046169,0.82382088,34574.0,34573.0,0.75178249]
[1625310046468,0.73822088,34574.0,34573.0,0.75178249]
[1625310046568,0.73822088,34574.0,34573.0,0.75174124]
[1625310047068,0.73822088,34574.0,34573.0,0.83692171]
[1625310047718,0.73822088,34574.0,34573.0,0.92382171]
[1625310048370,0.54015088,34574.0,34573.0,0.92382171]
[1625310048822,0.54015088,34574.0,34573.0,0.83864124]
[1625310049172,0.54015088,34574.0,34573.0,0.75174124]
[1625310049875,0.54015088,34574.0,34573.0,1.09231409]
[1625310050222,0.54015088,34574.0,34573.0,0.58135264]
[1625310050425,0.54015088,34574.0,34573.0,0.58672519]
[1625310050774,0.54015088,34574.0,34573.0,0.58135264]
[1625310051277,0.54015088,34574.0,34573.0,0.83678857]
[1625310052228,0.54015088,34574.0,34573.0,0.49601137]
[1625310052328,0.54015088,34574.0,34573.0,0.50138398]
[1625310052828,0.54015088,34574.0,34573.0,0.56038398]
[1625310052928,0.54015088,34574.0,34573.0,0.50138398]
[1625310053280,0.62675088,34574.0,34573.0,0.50138398]
[1625310053480,0.62675088,34574.0,34573.0,0.26080854]
[1625310053780,0.62675088,34574.0,34573.0,0.31980854]
[1625310053880,0.62675088,34574.0,34573.0,0.26080854]
[1625310055734,0.62675088,34574.0,34573.0,0.00537261]
[1625310056536,0.62675088,34574.0,34572.0,0.0053728]
[1625310056635,0.54015088,34574.0,34572.0,0.0053728]
[1625310059447,0.54015088,34574.0,34572.0,0.09045337]
[1625310059895,0.54015088,34574.0,34572.0,0.14945337]
[1625310059996,0.54015088,34574.0,34572.0,0.09045337]
[1625310060095,0.54015088,34574.0,34573.0,0.00536731]
[1625310060648,0.54015088,34574.0,34573.0,0.06436731]
[1625310060748,0.54015088,34574.0,34573.0,0.00536731]
[1625310061399,0.62785088,34574.0,34573.0,0.00536731]
[1625310062604,0.54015088,34574.0,34573.0,0.00536731]
[1625310062702,0.54015088,34574.0,34572.0,0.0053669]
[1625310065509,0.54015088,34574.0,34572.0,0.09045278]
[1625310065808,0.54015088,34574.0,34573.0,0.00536661]
[1625310065910,0.54015088,34574.0,34573.0,0.23955661]
[1625310067510,0.54015088,34574.0,34573.0,0.00536661]
[1625310070718,0.62815088,34574.0,34573.0,0.00536661]
[1625310071118,0.54015088,34574.0,34573.0,0.00536661]
[1625310074175,1.54155269,34574.0,34573.0,0.00536661]
[1625310074324,1.55388851,34574.0,34573.0,0.00536661]
[1625310074574,1.55388851,34574.0,34572.0,0.00536684]
[1625310074874,1.54155269,34574.0,34572.0,0.00536684]
[1625310075026,1.00244934,34573.0,34572.0,0.00536684]
[1625310075126,1.06144934,34573.0,34572.0,0.00536684]
[1625310077285,2.230689,34573.0,34572.0,0.00536684]
[1625310077836,2.89951751,34573.0,34572.0,0.00536684]
[1625310077934,2.89951751,34573.0,34570.0,0.09058576]
[1625310078184,2.89951751,34573.0,34572.0,0.00534469]
[1625310078435,2.89951751,34573.0,34569.0,0.51120039]
[1625310078436,0.059,34573.0,34571.0,0.00534471]
[1625310078736,0.059,34573.0,34570.0,0.00534468]
[1625310078989,1.67172646,34572.0,34570.0,0.00534468]
[1625310079088,1.73072646,34572.0,34570.0,0.00534468]
[1625310079488,2.84389874,34571.0,34570.0,0.09063353]
[1625310079587,2.90289874,34571.0,34570.0,0.09063353]
[1625310079837,2.90289874,34571.0,34570.0,0.26121122]
[1625310079938,3.14347418,34571.0,34570.0,0.26121122]
[1625310080089,3.22927418,34571.0,34570.0,0.26121122]
[1625310080189,3.14347418,34571.0,34570.0,0.26121122]
[1625310080642,1.97249641,34571.0,34570.0,0.60236528]
[1625310081343,3.14474223,34571.0,34570.0,0.09063353]
[1625310081845,3.14474223,34571.0,34570.0,0.60260401]
[1625310082448,3.14474223,34571.0,34570.0,0.51731516]
[1625310082900,3.14474223,34571.0,34570.0,0.60264351]
[1625310083451,3.14474223,34571.0,34570.0,0.26132986]
[1625310084053,4.48427645,34571.0,34570.0,0.26132986]
[1625310084152,4.48427645,34571.0,34570.0,0.09067303]
[1625310084652,4.48427645,34571.0,34570.0,0.60293952]
[1625310085302,4.48427645,34571.0,34570.0,0.26142853]
[1625310085804,4.48427645,34571.0,34570.0,0.51779518]
[1625310086203,4.48427645,34571.0,34570.0,0.60321889]
[1625310086554,4.48427645,34571.0,34570.0,0.51779518]
[1625310087558,4.48427645,34571.0,34570.0,0.51816337]
[1625310088011,4.48427645,34571.0,34570.0,0.8600111]
[1625310088257,4.48427645,34571.0,34570.0,0.51816337]
[1625310089811,4.48427645,34571.0,34570.0,1.20203717]
[1625310091068,4.48427645,34571.0,34570.0,1.46376717]
[1625310091418,4.48427645,34571.0,34570.0,2.48954265]
[1625310093424,1.63910966,34571.0,34570.0,2.48954265]
[1625310093977,3.48800057,34571.0,34570.0,2.48954265]
[1625310094629,4.49611979,34571.0,34570.0,1.20203717]
[1625310097134,4.56746092,34571.0,34570.0,1.20203717]
[1625310097435,6.07869646,34571.0,34570.0,0.51843381]
[1625310097885,5.40632666,34571.0,34570.0,0.51843381]
[1625310098437,5.40632666,34571.0,34570.0,0.6039521]
[1625310099038,5.40632666,34571.0,34570.0,0.51843381]
[1625310100390,5.34732666,34571.0,34570.0,0.51843381]
[1625310100590,5.34732666,34571.0,34570.0,0.2618926]
[1625310101291,5.40632666,34571.0,34570.0,0.2618926]
[1625310101442,5.34732666,34571.0,34570.0,0.2618926]
[1625310101740,5.40632666,34571.0,34570.0,0.2618926]
[1625310103198,5.39398553,34571.0,34570.0,0.2618926]
[1625310103446,5.39398553,34571.0,34570.0,0.60391804]
[1625310103695,5.40638305,34571.0,34570.0,0.60391804]
[1625310103946,5.39398553,34571.0,34570.0,0.2618926]
[1625310104347,5.33498553,34571.0,34570.0,0.2618926]
[1625310104497,5.39398553,34571.0,34570.0,0.2618926]
[1625310104598,5.33498553,34571.0,34570.0,0.2618926]
[1625310105201,5.39398553,34571.0,34570.0,0.2618926]
[1625310105553,5.40638102,34571.0,34570.0,0.2618926]
[1625310105803,5.39398553,34571.0,34570.0,0.2618926]
[1625310105904,5.39398553,34571.0,34570.0,0.09086289]
[1625310107007,5.39398553,34571.0,34570.0,0.26187415]
[1625310107106,5.40638118,34571.0,34570.0,0.26187415]
[1625310107560,5.40638118,34571.0,34570.0,0.00534468]
[1625310110516,5.39398553,34571.0,34570.0,0.00534468]
[1625310110867,5.40638118,34571.0,34570.0,0.00534468]
[1625310114123,5.64695662,34571.0,34570.0,0.00534468]
[1625310114826,5.64695662,34571.0,34569.0,0.00534383]
[1625310115075,5.64695662,34571.0,34570.0,0.00534391]
[1625310115227,0.61154653,34571.0,34570.0,0.00534391]
[1625310115326,0.61154653,34571.0,34569.0,0.00534396]
[1625310115526,0.61154653,34571.0,34570.0,0.00534403]
[1625310115676,5.65087943,34571.0,34570.0,0.00534403]
[1625310115827,5.65087943,34571.0,34569.0,0.00534398]
[1625310116078,5.65087943,34571.0,34570.0,0.00534398]
[1625310116227,0.61154653,34571.0,34570.0,0.00534398]
[1625310116327,0.61154653,34571.0,34569.0,0.00534398]
[1625310116577,0.59915088,34571.0,34569.0,0.00534398]
[1625310117531,0.59915088,34571.0,34568.0,0.07286052]
[1625310117631,0.01239656,34570.0,34568.0,0.07286052]
[1625310117734,0.059,34568.0,34567.0,0.49046733]
[1625310117932,0.059,34568.0,34567.0,0.37316733]
[1625310118033,0.118,34568.0,34567.0,0.37316733]
[1625310118132,0.35857544,34568.0,34565.0,1.02608577]
[1625310118231,0.37098926,34568.0,34565.0,1.02608577]
[1625310118332,0.37098926,34568.0,34559.0,0.68416713]
[1625310118483,0.01241436,34567.0,34559.0,0.48316713]
[1625310118582,0.13041436,34567.0,34559.0,0.48316713]
[1625310118683,0.13041436,34567.0,34560.0,0.00533745]
[1625310118984,0.01241464,34566.0,34560.0,0.00533745]
[1625310119085,0.13041464,34566.0,34560.0,0.00533745]
[1625310119186,1.67395649,34564.0,34560.0,0.00533745]
[1625310119285,1.95853649,34564.0,34560.0,0.00533745]
[1625310119438,2.07653649,34564.0,34560.0,0.00533745]
[1625310119586,0.01241247,34563.0,34553.0,0.00533839]
[1625310119686,5.02231472,34561.0,34553.0,0.00533839]
[1625310119787,5.14031472,34561.0,34552.0,1.02554791]
[1625310119986,2.17723818,34553.0,34552.0,1.02554791]
[1625310120185,3.19853994,34553.0,34552.0,1.02554791]
[1625310120536,3.19853994,34553.0,34552.0,1.03089028]
[1625310120738,4.74909714,34553.0,34552.0,0.00534237]
[1625310121240,4.74909714,34553.0,34551.0,1.03090384]
[1625310121489,4.74909714,34553.0,34552.0,0.0053424]
[1625310121640,4.80809714,34553.0,34552.0,0.0053424]
[1625310121740,2.63085896,34553.0,34552.0,0.0053424]
[1625310122192,4.80651274,34553.0,34552.0,0.0053424]
[1625310122543,4.80651274,34553.0,34551.0,0.0053425]
[1625310123145,2.17423572,34552.0,34550.0,0.00534245]
[1625310123244,2.29223572,34552.0,34550.0,0.00534245]
[1625310123395,2.23323572,34552.0,34548.0,1.024578]
[1625310123495,1.17075704,34551.0,34548.0,1.024578]
[1625310123596,2.17428696,34551.0,34549.0,0.00534251]
[1625310123696,2.17428696,34551.0,34549.0,0.29954251]
[1625310124046,1.00338393,34550.0,34549.0,0.29954251]
[1625310124146,1.00338393,34550.0,34549.0,0.2942]
[1625310124398,1.00338393,34550.0,34549.0,0.29953786]
[1625310124701,0.059,34550.0,34549.0,0.29953786]
[1625310125049,1.00299882,34551.0,34549.0,0.29953786]
[1625310125150,1.06199882,34551.0,34549.0,0.29953786]
[1625310125249,1.00299882,34551.0,34549.0,0.29953786]
[1625310125500,1.00299882,34551.0,34550.0,0.00533796]
[1625310125750,1.96593962,34553.0,34550.0,1.02924195]
[1625310126000,1.96593962,34553.0,34551.0,0.00533793]
[1625310126449,2.02493962,34553.0,34551.0,0.00533793]
[1625310126901,1.96593962,34553.0,34551.0,0.00533793]
[1625310128153,0.96230176,34553.0,34551.0,0.00533793]
[1625310128554,1.02130176,34553.0,34551.0,0.00533793]
[1625310128854,1.08030176,34553.0,34551.0,0.00533793]
[1625310128956,1.02130176,34553.0,34551.0,0.00533793]
[1625310129057,2.02398381,34553.0,34551.0,0.00533793]
[1625310129306,2.08298381,34553.0,34551.0,0.00533793]
[1625310129406,2.02398381,34553.0,34550.0,0.00533806]
[1625310129656,2.08298381,34553.0,34550.0,0.00533806]
[1625310129806,2.02398381,34553.0,34550.0,0.00533806]
[1625310130206,2.08298381,34553.0,34550.0,0.00533806]
[1625310130356,2.02398381,34553.0,34550.0,0.00533806]
[1625310130458,1.02130176,34553.0,34550.0,0.00533806]
[1625310130606,1.08030176,34553.0,34550.0,0.00533806]
[1625310130705,1.02130176,34553.0,34550.0,0.00533806]
[1625310130806,1.08030176,34553.0,34550.0,0.00533806]
[1625310131408,2.08269439,34553.0,34550.0,0.00533806]
[1625310131760,2.08269439,34553.0,34549.0,0.00533806]
[1625310132012,2.02369439,34553.0,34549.0,0.00533806]
[1625310132561,2.08269439,34553.0,34549.0,0.00533806]
[1625310133112,2.08269439,34553.0,34548.0,0.0053381]
[1625310133462,2.02369439,34553.0,34548.0,0.0053381]
[1625310133914,2.08269439,34553.0,34548.0,0.0053381]
[1625310134113,2.02369439,34553.0,34548.0,0.0053381]
[1625310134264,0.24057544,34549.0,34548.0,0.0053381]
[1625310134716,0.24057544,34549.0,34547.0,1.2634177]
[1625310135472,0.24057544,34549.0,34547.0,0.24057544]
[1625310135767,0.24057544,34549.0,34546.0,1.02274034]
[1625310136018,0.24057544,34549.0,34544.0,1.19319707]
[1625310136019,0.24057544,34549.0,34547.0,0.00533893]
[1625310136269,0.24057544,34549.0,34545.0,1.02278747]
[1625310136270,0.24057544,34548.0,34546.0,0.00533895]
[1625310137123,0.24057544,34548.0,34545.0,0.00533895]
[1625310138127,0.24057544,34548.0,34541.0,0.00533891]
[1625310138275,0.48115088,34548.0,34544.0,1.02247298]
[1625310138475,0.48115088,34548.0,34544.0,1.08147298]
[1625310138626,0.48115088,34548.0,34545.0,0.00533902]
[1625310140229,0.48115088,34548.0,34544.0,0.00533252]
[1625310140379,0.72172632,34548.0,34544.0,0.00533252]
[1625310141532,0.72172632,34548.0,34543.0,0.00533269]